bitfinex/quotes_SOLUSD_20250217
["timestamp","ask_amount","ask_price","bid_price","bid_amount"]
[1739818131143,37.43852859,176.41,176.35,30.70674538]
[1739818131362,6.73178321,176.41,176.35,30.70674538]
[1739818131655,5.6687,176.41,176.36,30.70674538]
[1739818132157,6.73168048,176.41,176.36,30.70674538]
[1739818132360,37.43842586,176.41,176.34,30.70674538]
[1739818132942,30.70674538,176.42,176.36,30.70674538]
[1739818133262,37.50096936,176.43,176.36,30.70674538]
[1739818133940,1.12602398,176.43,176.4,30.70674538]
[1739818134260,37.50072685,176.43,176.36,30.70674538]
[1739818134467,30.70674538,176.4,176.34,30.70674538]
[1739818134765,31.76986647,176.39,176.32,120.62674538]
[1739818134958,30.70674538,176.4,176.34,30.70674538]
[1739818135739,1.06311805,176.42,176.37,30.70674538]
[1739818135939,0.063,176.43,176.39,30.70674538]
[1739818136340,0.063,176.43,176.42,30.70674538]
[1739818137435,0.063,176.43,176.42,44.11859391]
[1739818139356,0.063,176.43,176.4,32.36894538]
[1739818139581,0.063,176.43,176.42,30.70674538]
[1739818140132,0.063,176.43,176.38,13.41184853]
[1739818140375,0.063,176.43,176.39,30.70674538]
[1739818140547,0.063,176.43,176.38,13.41184853]
[1739818140750,0.063,176.43,176.38,44.11859391]
[1739818141242,0.063,176.43,176.39,30.70674538]
[1739818141444,0.063,176.43,176.42,30.70674538]
[1739818141640,0.063,176.43,176.42,44.74768712]
[1739818143063,0.063,176.54,176.46,20.0]
[1739818143369,0.063,176.54,176.53,30.70674538]
[1739818144161,0.063,176.54,176.51,30.70674538]
[1739818144346,0.063,176.54,176.49,30.70674538]
[1739818144552,30.70674538,176.52,176.46,30.70674538]
[1739818145356,31.76905711,176.51,176.45,30.70674538]
[1739818145564,30.70674538,176.5,176.44,30.70674538]
[1739818146575,30.70674538,176.47,176.4,30.70674538]
[1739818146873,31.76936533,176.46,176.39,30.70674538]
[1739818147050,30.70674538,176.46,176.4,30.70674538]
[1739818147254,30.70674538,176.47,176.42,20.0]
[1739818147453,30.70674538,176.47,176.41,30.70674538]
[1739818147763,37.43522765,176.5,176.43,30.70674538]
[1739818147953,42.93584538,176.52,176.46,30.70674538]
[1739818148268,30.70674538,176.5,176.44,30.70674538]
[1739818148564,30.70674538,176.49,176.44,13.41184853]
[1739818148969,36.37254538,176.5,176.44,44.11859391]
[1739818149157,30.70674538,176.51,176.45,30.70674538]
[1739818150159,31.76909003,176.53,176.47,30.70674538]
[1739818150363,30.70674538,176.53,176.47,30.70674538]
[1739818150570,30.70674538,176.52,176.46,30.70674538]
[1739818150960,30.70674538,176.49,176.44,20.0]
[1739818151164,30.70674538,176.48,176.44,20.0]
[1739818151466,30.70674538,176.49,176.44,20.0]
[1739818151669,0.063,176.46,176.44,20.0]
[1739818153068,0.063,176.46,176.45,30.70674538]
[1739818153671,0.063,176.46,176.44,50.70674538]
[1739818153873,0.063,176.46,176.45,30.70674538]
[1739818154686,0.063,176.46,176.45,44.11859391]
[1739818155062,0.063,176.46,176.45,44.74725488]
[1739818156058,0.063,176.46,176.45,46.29495488]
[1739818156471,0.063,176.46,176.45,52.51235488]
[1739818156767,0.063,176.46,176.45,187.81235488]
[1739818156973,0.063,176.46,176.45,187.18369391]
[1739818157760,0.063,176.46,176.45,51.88369391]
[1739818158082,0.063,176.46,176.45,44.11859391]
[1739818158664,0.063,176.46,176.43,30.70674538]
[1739818159070,0.063,176.46,176.45,20.0]
[1739818159470,0.063,176.46,176.45,50.70674538]
[1739818159975,0.063,176.46,176.45,20.0]
[1739818160666,0.063,176.46,176.45,50.70674538]
[1739818161273,0.063,176.46,176.45,20.0]
[1739818162386,0.063,176.46,176.45,50.70674538]
[1739818162576,0.063,176.46,176.45,64.74737206]
[1739818163289,0.063,176.46,176.45,200.04737206]
[1739818163473,0.063,176.46,176.45,199.41859391]
[1739818163669,0.063,176.54,176.49,20.0]
[1739818163865,0.063,176.54,176.53,44.11859391]
[1739818168383,0.063,176.54,176.53,30.70674538]
[1739818168584,0.063,176.54,176.5,30.70674538]
[1739818168787,0.063,176.54,176.49,166.00674538]
[1739818168985,0.063,176.54,176.49,30.70674538]
[1739818169488,0.063,176.54,176.48,13.41184853]
[1739818169693,0.063,176.54,176.51,20.0]
[1739818170072,0.063,176.54,176.49,30.70674538]
[1739818170675,30.70674538,176.5,176.44,30.70674538]
[1739818170969,30.70674538,176.5,176.45,13.41184853]
[1739818171890,36.37224538,176.51,176.45,44.11859391]
[1739818172088,5.6655,176.51,176.46,30.70674538]
[1739818172267,36.37224538,176.51,176.45,44.11859391]
[1739818173778,31.76910628,176.5,176.44,30.70674538]
[1739818173980,31.76910628,176.5,176.43,0.03]
[1739818173981,30.70674538,176.45,176.43,0.03]
[1739818174402,30.70674538,176.44,176.43,0.03]
[1739818175685,30.70674538,176.46,176.43,0.03]
[1739818175889,7.2124,176.47,176.43,0.03]
[1739818176192,5.6669,176.47,176.43,0.03]
[1739818177099,5.6654,176.51,176.45,30.70674538]
[1739818177310,31.76918781,176.5,176.44,30.70674538]
[1739818178300,36.37274538,176.49,176.43,30.73674538]
[1739818179201,5.666,176.49,176.44,30.70674538]
[1739818179996,5.666,176.49,176.45,30.70674538]
[1739818180899,5.666,176.49,176.44,30.70674538]
[1739818181980,36.37274538,176.49,176.43,30.73674538]
[1739818182713,31.76927658,176.48,176.43,0.03]
[1739818183004,30.70674538,176.47,176.43,0.03]
[1739818183697,30.70674538,176.46,176.43,0.03]
[1739818183910,30.70674538,176.44,176.43,0.03]
[1739818184496,36.37434538,176.44,176.43,0.03]
[1739818184904,37.43721403,176.44,176.43,0.03]
[1739818185994,39.02881403,176.44,176.43,0.0001]
[1739818188187,20.0,176.41,176.4,0.0001]
[1739818188498,95.88872149,176.41,176.35,0.03]
[1739818188811,36.86264538,176.36,176.35,0.03]
[1739818189186,36.86264538,176.36,176.31,89.86]
[1739818189408,30.70674538,176.33,176.31,89.86]
[1739818189618,31.77028711,176.32,176.31,89.86]
[1739818190109,30.70674538,176.32,176.31,89.86]
[1739818190908,36.37824538,176.32,176.27,0.03]
[1739818191211,30.70674538,176.28,176.27,0.03]
[1739818191904,30.70674538,176.28,176.25,0.03]
[1739818192101,30.70674538,176.26,176.22,0.03]
[1739818192400,30.70674538,176.23,176.22,0.03]
[1739818193100,36.38114538,176.23,176.22,0.03]
[1739818195092,5.6744,176.23,176.22,0.03]
[1739818195402,6.73847886,176.23,176.22,0.03]
[1739818195903,5.6744,176.23,176.22,0.03]
[1739818196387,30.70674538,176.27,176.22,0.03]
[1739818197117,37.44337653,176.28,176.22,30.73674538]
[1739818197304,30.70674538,176.27,176.22,0.03]
[1739818197506,30.70674538,176.24,176.22,0.03]
[1739818197812,31.77082567,176.23,176.22,0.03]
[1739818198910,31.77082567,176.23,176.14,30.70674538]
[1739818198911,31.77082567,176.23,176.13,30.70674538]
[1739818199119,30.70674538,176.16,176.1,36.94904538]
[1739818199312,30.70674538,176.17,176.11,120.60674538]
[1739818200332,30.70674538,176.16,176.11,89.9]
[1739818200538,31.77119845,176.16,176.11,89.9]
[1739818201125,30.70674538,176.18,176.11,120.60674538]
[1739818201329,30.70674538,176.16,176.11,89.9]
[1739818201837,31.77123407,176.15,176.11,89.9]
[1739818202196,30.70674538,176.12,176.07,0.03]
[1739818202394,30.70674538,176.1,176.07,0.03]
[1739818202807,30.70674538,176.08,176.07,0.03]
[1739818203011,30.70674538,176.09,176.07,0.03]
[1739818203205,5.679,176.09,176.07,0.03]
[1739818203620,37.45064367,176.09,176.07,0.03]
[1739818203920,30.70674538,176.08,176.07,0.03]
[1739818204899,36.38594538,176.08,176.07,0.03]
[1739818205098,5.6792,176.08,176.07,0.03]
[1739818205399,36.38564538,176.09,176.07,0.03]
[1739818205721,31.7717197,176.08,176.07,0.03]
[1739818206221,31.7717197,176.08,176.07,0.0001]
[1739818206517,20.0,176.05,175.94,30.70674538]
[1739818206720,30.70674538,176.01,175.93,30.70674538]
[1739818207108,36.38814538,176.01,175.93,30.70674538]
[1739818207313,37.45368363,176.01,175.93,30.70674538]
[1739818207816,37.45368363,176.01,175.92,30.70674538]
[1739818208026,37.45368363,176.01,175.91,120.72674538]
[1739818208812,37.45368363,176.01,175.92,30.70674538]
[1739818209328,37.45368363,176.01,175.91,90.02]
[1739818209630,30.70674538,175.92,175.84,0.63550406]
[1739818209836,20.0,175.92,175.83,30.70674538]
[1739818210123,31.77275539,175.91,175.85,30.70674538]
[1739818210321,1.06601001,175.91,175.85,30.70674538]
[1739818210542,1.06601001,175.91,175.88,30.70674538]
[1739818210738,1.06604089,175.94,175.9,30.70674538]
[1739818210912,30.70674538,175.98,175.86,30.70674538]
[1739818211104,1.0657496,175.97,175.92,30.70674538]
[1739818211328,5.6824,175.98,175.92,30.70674538]
[1739818211528,37.45474726,175.98,175.91,30.70674538]
[1739818211728,30.70674538,175.96,175.9,36.90424538]
[1739818211922,31.77250383,175.96,175.9,36.90424538]
[1739818212321,30.70674538,175.92,175.86,30.70674538]
[1739818212629,30.70674538,175.9,175.83,30.70674538]
[1739818212801,30.70674538,175.91,175.85,20.0]
[1739818213002,31.77280793,175.9,175.83,30.70674538]
[1739818213334,30.70674538,175.87,175.8,122.24744538]
[1739818213525,5.6863,175.86,175.81,30.70674538]
[1739818213706,5.6863,175.86,175.82,30.70674538]
[1739818213912,37.45935883,175.86,175.8,120.74674538]
[1739818214229,30.70674538,175.83,175.8,90.04]
[1739818214412,30.70674538,175.81,175.75,30.70674538]
[1739818214613,30.70674538,175.76,175.71,220.0]
[1739818214822,30.70674538,175.79,175.72,30.70674538]
[1739818215016,1.06681247,175.78,175.72,30.70674538]
[1739818215229,31.77355785,175.78,175.71,220.0]
[1739818215525,5.6899,175.75,175.71,220.0]
[1739818215728,36.39664538,175.75,175.71,220.0]
[1739818215912,5.6899,175.75,175.71,220.0]
[1739818216107,6.7569314,175.75,175.71,220.0]
[1739818216444,6.7569314,175.75,175.71,219.5]
[1739818216445,30.70674538,175.72,175.71,219.5]
[1739818216623,30.70674538,175.74,175.71,219.5]
[1739818217029,30.70674538,175.73,175.71,219.5]
[1739818217224,31.77390014,175.72,175.71,219.5]
[1739818217526,37.46470014,175.72,175.71,190.6465]
[1739818217726,37.46470014,175.72,175.71,130.3589]
[1739818217926,37.46470014,175.72,175.71,101.2993]
[1739818218125,37.46470014,175.72,175.71,71.7653]
[1739818218315,37.46470014,175.72,175.71,6.6104]
[1739818218516,45.09270014,175.72,175.71,0.0001]
[1739818218730,45.09270014,175.72,175.68,0.0001]
[1739818218731,59.31980014,175.72,175.68,0.0001]
[1739818218921,30.70674538,175.69,175.68,0.0001]
[1739818219433,36.39854538,175.69,175.68,0.0001]
[1739818219618,80.51713929,175.69,175.68,0.0001]
[1739818219827,81.58495724,175.69,175.68,0.0001]
[1739818220326,20.0,175.65,175.51,1.58929808]
[1739818220530,30.70674538,175.62,175.55,40.70674538]
[1739818220841,30.70674538,175.62,175.56,29.20674538]
[1739818221226,31.77464098,175.61,175.55,10.0]
[1739818221417,14.2379,175.59,175.55,10.0]
[1739818221627,30.70674538,175.58,175.55,10.0]
[1739818221828,1.06808301,175.58,175.55,10.0]
[1739818222026,6.76245335,175.62,175.55,10.0]
[1739818222329,30.70674538,175.77,175.61,30.70674538]
[1739818222330,1.0677931,175.66,175.61,30.70674538]
[1739818222527,5.692,175.69,175.64,30.70674538]
[1739818222723,5.692,175.69,175.59,30.70674538]
[1739818222724,1.06737597,175.68,175.6,6.0066]
[1739818223046,31.77420167,175.74,175.67,30.70674538]
[1739818223214,1.06745629,175.74,175.7,30.70674538]
[1739818223420,1.13004995,175.76,175.7,30.70674538]
[1739818223623,5.6901,175.75,175.69,30.70674538]
[1739818223816,0.063,175.76,175.73,30.70674538]
[1739818224116,0.063,175.76,175.75,30.70674538]
[1739818224527,0.063,175.76,175.71,20.0]
[1739818224733,0.063,175.76,175.74,30.70674538]
[1739818224927,0.063,175.76,175.73,30.70674538]
[1739818226537,0.063,175.76,175.72,30.70674538]
[1739818227429,0.063,175.76,175.73,30.70674538]
[1739818227723,0.063,175.76,175.72,30.70674538]
[1739818228135,0.063,175.76,175.73,30.70674538]
[1739818228335,0.063,175.76,175.74,30.70674538]
[1739818228535,0.063,175.76,175.73,30.70674538]
[1739818228920,31.8365564,175.76,175.59,32.36284538]
[1739818229125,30.70674538,175.75,175.68,30.70674538]
[1739818229317,1.06704759,175.74,175.63,13.41184853]
[1739818229521,1.06704759,175.74,175.69,30.70674538]
[1739818229736,30.70674538,175.73,175.67,30.70674538]
[1739818229936,5.6911,175.71,175.66,30.70674538]
[1739818230236,1.0672554,175.7,175.65,30.70674538]
[1739818230445,36.39784538,175.71,175.65,30.70674538]
[1739818230446,5.6911,175.71,175.65,30.70674538]
[1739818230644,6.75834864,175.71,175.66,30.70674538]
[1739818231030,30.70674538,175.73,175.66,30.70674538]
[1739818231232,1.06721707,175.72,175.67,30.70674538]
[1739818231426,1.06721707,175.72,175.66,30.70674538]
[1739818231846,1.06721707,175.72,175.67,30.70674538]
[1739818232040,6.75811707,175.72,175.66,30.70674538]
[1739818232245,30.70674538,175.7,175.6,6.4417]
[1739818232423,31.77418284,175.69,175.61,30.70674538]
[1739818232624,30.70674538,175.67,175.61,30.70674538]
[1739818232830,31.77434546,175.69,175.63,30.70674538]
[1739818233032,1.06760008,175.69,175.63,30.70674538]
[1739818233345,30.70674538,175.7,175.63,30.70674538]
[1739818233550,30.70674538,175.71,175.65,30.70674538]
[1739818233757,30.70674538,175.7,175.64,30.70674538]
[1739818233962,5.6909,175.72,175.67,30.70674538]
[1739818234133,5.6909,175.72,175.66,30.70674538]
[1739818234332,6.75812295,175.72,175.66,30.70674538]
[1739818234563,6.7580986,175.72,175.66,30.70674538]
[1739818234745,1.0671986,175.72,175.66,30.70674538]
[1739818234945,5.6905,175.73,175.67,30.70674538]
[1739818235342,0.063,175.74,175.72,30.70674538]
[1739818235658,0.063,175.74,175.73,30.70674538]
[1739818237164,0.063,175.74,175.68,30.70674538]
[1739818237550,0.063,175.74,175.69,50.70674538]
[1739818238046,0.063,175.74,175.7,30.70674538]
[1739818238455,0.063,175.74,175.69,30.70674538]
[1739818238830,0.063,175.74,175.7,30.70674538]
[1739818239026,0.063,175.74,175.71,30.70674538]
[1739818239229,0.063,175.74,175.7,30.70674538]
[1739818239453,30.70674538,175.73,175.66,20.0]
[1739818239655,30.70674538,175.73,175.66,50.70674538]
[1739818239945,0.063,175.74,175.64,30.73674538]
[1739818239946,30.70674538,175.7,175.64,30.73674538]
[1739818240147,30.70674538,175.72,175.65,30.70674538]
[1739818240544,5.6911,175.71,175.66,30.70674538]
[1739818240940,5.6911,175.71,175.67,30.70674538]
[1739818241547,5.6911,175.71,175.66,30.70674538]
[1739818241730,5.6911,175.71,175.65,30.70674538]
[1739818242248,5.6911,175.71,175.64,0.03]
[1739818242451,5.6911,175.71,175.66,30.70674538]
[1739818242757,19.9179,175.72,175.66,30.70674538]
[1739818243133,30.70674538,175.71,175.64,30.73674538]
[1739818243542,50.62464538,175.72,175.65,30.70674538]
[1739818245131,30.70674538,175.7,175.64,30.73674538]
[1739818245335,30.70674538,175.7,175.64,0.03]
[1739818245959,30.70674538,175.69,175.64,0.03]
[1739818246664,5.6918,175.69,175.64,0.03]
[1739818246835,5.6918,175.69,175.64,30.73674538]
[1739818247247,19.9214,175.69,175.65,0.03]
[1739818247454,50.62814538,175.69,175.65,0.03]
[1739818247649,30.70674538,175.67,175.65,0.03]
[1739818247853,30.70674538,175.66,175.65,0.03]
[1739818248155,30.70674538,175.67,175.65,0.03]
[1739818248331,30.70674538,175.66,175.65,0.03]
[1739818248758,30.70674538,175.67,175.65,0.03]
[1739818248960,5.6921,175.68,175.65,0.03]
[1739818249179,5.6921,175.68,175.65,30.73674538]
[1739818249352,5.6921,175.68,175.65,0.03]
[1739818250374,5.6921,175.68,175.65,30.73674538]
[1739818250583,5.6911,175.71,175.67,30.70674538]
[1739818250745,14.2276,175.72,175.67,30.70674538]
[1739818250946,50.62514538,175.72,175.66,30.70674538]
[1739818251367,36.39754538,175.72,175.66,30.70674538]
[1739818252080,30.70674538,175.71,175.65,0.03]
[1739818252283,30.70674538,175.71,175.65,30.73674538]
[1739818252950,5.6915,175.7,175.66,30.70674538]
[1739818253270,5.6915,175.7,175.65,0.03]
[1739818253456,5.6915,175.7,175.65,30.73674538]
[1739818253655,5.6915,175.7,175.66,30.70674538]
[1739818254168,5.6905,175.73,175.67,30.70674538]
[1739818254674,5.6905,175.73,175.68,30.70674538]
[1739818254961,5.7532,175.74,175.69,30.70674538]
[1739818255269,36.45994538,175.74,175.68,30.70674538]
[1739818255845,5.7532,175.74,175.71,30.70674538]
[1739818256559,0.063,175.74,175.73,30.70674538]
[1739818259193,0.063,175.74,175.73,38.71974538]
[1739818260362,0.063,175.74,175.73,52.13159391]
[1739818260568,0.063,175.74,175.73,38.71974538]
[1739818260955,0.063,175.74,175.73,30.70674538]
[1739818263363,0.063,175.74,175.73,49.80909391]
[1739818264077,28.25173006,176.03,175.79,20.0]
[1739818264078,44.91954538,175.9,175.79,20.0]
[1739818264278,10.4053,175.89,175.85,30.70674538]
[1739818264578,1.664,175.95,175.88,30.70674538]
[1739818264874,30.70674538,175.95,175.89,30.70674538]
[1739818265175,5.6837,175.94,175.89,30.70674538]
[1739818265488,5.6828,175.97,175.91,30.70674538]
[1739818265784,5.6831,175.96,175.91,30.70674538]
[1739818266163,5.6834,175.95,175.91,30.70674538]
[1739818266773,30.70674538,175.99,175.91,30.70674538]
[1739818266979,14.2037,176.01,175.91,30.70674538]
[1739818266980,5.6831,175.96,175.91,30.70674538]
[1739818267267,5.6821,175.99,175.91,30.70674538]
[1739818267480,5.6821,175.99,175.91,44.11859391]
[1739818268462,5.6818,176.0,175.91,44.11859391]
[1739818268672,30.70674538,176.05,175.95,20.0]
[1739818268860,5.6798,176.06,176.0,30.70674538]
[1739818269283,36.38654538,176.06,176.0,30.70674538]
[1739818269676,36.38654538,176.06,175.95,50.70674538]
[1739818269677,30.70674538,176.05,175.99,30.70674538]
[1739818270565,30.70674538,176.05,176.0,30.70674538]
[1739818270972,50.58624538,176.06,176.0,30.70674538]
[1739818271487,30.70674538,176.05,176.0,30.70674538]
[1739818271679,50.58624538,176.06,176.0,30.70674538]
[1739818272076,30.70674538,176.05,176.0,30.70674538]
[1739818272269,5.6805,176.04,176.0,30.70674538]
[1739818272589,5.6805,176.04,175.95,57.64988005]
[1739818272590,5.6798,176.06,176.02,30.70674538]
[1739818272971,5.6798,176.06,176.03,30.70674538]
[1739818273292,36.38654538,176.06,176.01,30.70674538]
[1739818273497,5.6798,176.06,176.02,30.70674538]
[1739818273793,5.6798,176.06,176.04,30.70674538]
[1739818273989,44.90414538,176.09,176.04,30.70674538]
[1739818274371,30.70674538,176.08,176.02,30.70674538]
[1739818274575,14.1974,176.09,176.04,30.70674538]
[1739818274772,30.70674538,176.1,176.04,30.70674538]
[1739818274994,5.6782,176.11,176.06,30.70674538]
[1739818275796,5.6782,176.11,176.01,0.85186977]
[1739818275797,5.6769,176.15,176.09,30.70674538]
[1739818276087,5.6769,176.15,176.04,30.70674538]
[1739818276088,36.38364538,176.15,176.1,30.70674538]
[1739818276278,5.6769,176.15,176.1,30.70674538]
[1739818276481,5.6766,176.16,176.11,30.70674538]
[1739818276669,5.6763,176.17,176.13,30.70674538]
[1739818276871,5.6763,176.17,176.14,30.70674538]
[1739818277471,30.70674538,176.21,176.15,30.70674538]
[1739818277709,5.6753,176.2,176.15,30.70674538]
[1739818278002,30.70674538,176.18,176.07,0.85147786]
[1739818278171,5.6763,176.17,176.13,30.70674538]
[1739818278372,5.6763,176.17,176.14,30.70674538]
[1739818278606,5.6763,176.17,176.13,30.70674538]
[1739818279019,0.063,176.22,176.16,30.70674538]
[1739818279238,5.6753,176.21,176.17,30.70674538]
[1739818279437,5.6753,176.21,176.13,30.70674538]
[1739818279438,0.063,176.22,176.19,30.70674538]
[1739818279606,0.063,176.22,176.2,30.70674538]
[1739818279808,5.7378,176.22,176.19,30.70674538]
[1739818280440,0.063,176.22,176.19,30.70674538]
[1739818281103,30.70674538,176.21,176.15,30.70674538]
[1739818281333,0.063,176.22,176.13,30.70674538]
[1739818281334,30.70674538,176.19,176.13,30.70674538]
[1739818281508,30.70674538,176.21,176.15,30.70674538]
[1739818281710,30.76974538,176.22,176.16,30.70674538]
[1739818282535,0.063,176.22,176.17,30.70674538]
[1739818283233,30.70674538,176.21,176.15,30.70674538]
[1739818284045,30.70674538,176.21,176.16,30.70674538]
[1739818284337,30.70674538,176.21,176.15,30.70674538]
[1739818284541,0.063,176.22,176.12,90.1]
[1739818284542,36.38304538,176.17,176.12,90.1]
[1739818285044,5.6763,176.17,176.13,30.70674538]
[1739818285608,5.6763,176.17,176.14,30.70674538]
[1739818286037,5.6756,176.19,176.14,30.70674538]
[1739818286943,5.6756,176.19,176.15,30.70674538]
[1739818287109,5.6756,176.19,176.16,30.70674538]
[1739818287310,0.063,176.22,176.18,30.70674538]
[1739818287533,0.063,176.22,176.2,30.70674538]
[1739818287706,0.063,176.22,176.21,30.70674538]
[1739818290047,0.063,176.22,176.21,81.34513929]
[1739818290256,0.063,176.22,176.21,50.63839391]
[1739818290456,0.063,176.22,176.21,37.22654538]
[1739818290632,0.063,176.22,176.18,30.70674538]
[1739818290835,30.70674538,176.21,176.15,30.70674538]
[1739818291161,30.70674538,176.19,176.13,37.22654538]
[1739818291764,36.38174538,176.21,176.15,30.70674538]
[1739818291969,30.70674538,176.2,176.14,30.70674538]
[1739818292439,36.38174538,176.21,176.15,30.70674538]
[1739818292640,30.70674538,176.2,176.14,30.70674538]
[1739818292955,30.70674538,176.19,176.13,30.70674538]
[1739818293131,30.70674538,176.2,176.14,30.70674538]
[1739818293331,36.38174538,176.21,176.15,30.70674538]
[1739818293578,5.675,176.21,176.16,30.70674538]
[1739818293784,36.38174538,176.21,176.15,30.70674538]
[1739818293970,30.70674538,176.2,176.14,30.70674538]
[1739818294370,36.38174538,176.21,176.15,30.70674538]
[1739818294576,30.70674538,176.2,176.14,30.70674538]
[1739818294777,30.70674538,176.17,176.12,90.1]
[1739818295088,5.675,176.21,176.12,90.1]
[1739818295262,5.675,176.21,176.16,30.70674538]
[1739818295459,30.70674538,176.2,176.14,30.70674538]
[1739818295681,30.70674538,176.19,176.13,30.70674538]
[1739818296051,5.676,176.18,176.12,120.80674538]
[1739818297310,5.676,176.18,176.12,30.70674538]
[1739818297589,36.38274538,176.18,176.12,30.70674538]
[1739818297790,30.70674538,176.14,176.07,90.02]
[1739818297953,5.676,176.18,176.12,30.70674538]
[1739818298386,36.38274538,176.18,176.12,30.70674538]
[1739818298891,5.676,176.18,176.13,30.70674538]
[1739818299256,5.676,176.18,176.12,30.70674538]
[1739818299683,30.70674538,176.21,176.15,30.70674538]
[1739818299893,5.6753,176.2,176.16,30.70674538]
[1739818300998,30.70674538,176.21,176.15,30.70674538]
[1739818301201,0.063,176.22,176.09,0.85137847]
[1739818301202,30.70674538,176.2,176.14,30.70674538]
[1739818302102,30.70674538,176.19,176.12,30.70674538]
[1739818302302,30.70674538,176.15,176.09,30.70674538]
[1739818302498,30.70674538,176.18,176.11,30.70674538]
[1739818302663,30.76974538,176.22,176.16,30.70674538]
[1739818302872,0.063,176.22,176.17,30.70674538]
[1739818303603,30.76974538,176.22,176.16,30.70674538]
[1739818303792,30.76974538,176.22,176.11,0.85153964]
[1739818303793,30.70674538,176.21,176.15,30.70674538]
[1739818303998,30.70674538,176.21,176.08,6.2096]
[1739818303999,30.70674538,176.18,176.12,30.70674538]
[1739818304187,30.70674538,176.17,176.11,30.70674538]
[1739818304875,30.70674538,176.16,176.1,30.70674538]
[1739818305102,5.6773,176.14,176.09,30.70674538]
[1739818305306,36.38404538,176.14,176.08,30.70674538]
[1739818306182,5.6773,176.14,176.09,30.70674538]
[1739818306382,30.70674538,176.18,176.12,30.70674538]
[1739818306979,30.70674538,176.16,176.1,30.70674538]
[1739818307284,30.70674538,176.15,176.09,30.70674538]
[1739818307491,30.70674538,176.14,176.08,30.70674538]
[1739818307881,30.70674538,176.15,176.09,30.70674538]
[1739818308311,30.70674538,176.14,176.08,30.70674538]
[1739818308624,30.70674538,176.14,176.07,90.02]
[1739818308828,30.70674538,176.14,176.08,30.70674538]
[1739818309514,5.6776,176.13,176.08,30.70674538]
[1739818309697,5.6776,176.13,176.09,30.70674538]
[1739818310094,5.6769,176.15,176.12,30.70674538]
[1739818310298,5.6769,176.15,176.13,30.70674538]
[1739818311031,5.676,176.18,176.13,30.70674538]
[1739818311206,44.95674538,176.22,176.16,30.70674538]
[1739818311401,5.675,176.21,176.16,30.70674538]
[1739818312240,36.38174538,176.21,176.15,30.70674538]
[1739818312615,30.70674538,176.2,176.15,30.70674538]
[1739818313019,30.70674538,176.2,176.14,30.70674538]
[1739818313323,30.70674538,176.17,176.11,30.70674538]
[1739818313921,30.70674538,176.18,176.12,30.70674538]
[1739818314408,30.70674538,176.17,176.11,30.70674538]
[1739818314613,30.70674538,176.15,176.09,30.70674538]
[1739818314818,30.70674538,176.17,176.11,30.70674538]
[1739818315020,48.2405,176.2,176.07,90.02]
[1739818315021,30.70674538,176.16,176.1,30.70674538]
[1739818315203,30.70674538,176.15,176.09,30.70674538]
[1739818315403,30.70674538,176.17,176.11,30.70674538]
[1739818315604,30.70674538,176.18,176.12,30.70674538]
[1739818315805,30.70674538,176.19,176.13,30.70674538]
[1739818316327,5.676,176.18,176.14,30.70674538]
[1739818316506,5.675,176.21,176.16,30.70674538]
[1739818317415,50.56934538,176.21,176.15,30.70674538]
[1739818318426,36.38174538,176.21,176.15,30.70674538]
[1739818318612,36.38174538,176.21,176.1,50.70674538]
[1739818318613,30.70674538,176.16,176.1,50.70674538]
[1739818318819,19.8626,176.21,176.09,30.70674538]
[1739818319129,30.70674538,176.15,176.09,30.70674538]
[1739818320126,30.70674538,176.14,176.08,30.70674538]
[1739818320321,5.6776,176.13,176.07,90.02]
[1739818320526,5.6776,176.13,176.07,120.72674538]
[1739818320527,36.38434538,176.13,176.07,120.72674538]
[1739818320735,5.6776,176.13,176.08,30.70674538]
[1739818321033,5.6776,176.13,176.09,30.70674538]
[1739818321219,36.38334538,176.16,176.1,30.70674538]
[1739818321420,30.70674538,176.15,176.09,30.70674538]
[1739818321925,30.70674538,176.14,176.09,30.70674538]
[1739818322331,30.70674538,176.15,176.09,30.70674538]
[1739818322831,30.70674538,176.14,176.08,30.70674538]
[1739818323023,30.70674538,176.11,176.07,90.02]
[1739818323644,30.70674538,176.1,176.07,90.02]
[1739818323820,30.70674538,176.12,176.07,90.02]
[1739818324026,30.70674538,176.14,176.07,120.72674538]